[Event "*** SCC Grand Prix: Titled Tuesday Blitz"]
[Site "Chess.com"]
[Date "2020.09.08"]
[Round "1"]
[White "Natalya_Buksa"]
[Black "rududuyk"]
[Result "1-0"]
[WhiteElo "2525"]
[BlackElo "2156"]
[TimeControl "180+1"]
[EndTime "10:08:40 PDT"]
[Termination "Natalya_Buksa won by resignation"]

1. d4 {[%clk 0:03:00.9]} 1... e6 {[%clk 0:02:59.4]} 2. e4 {[%clk 0:02:59.2]}
2... d5 {[%clk 0:02:57.6]} 3. Nd2 {[%clk 0:02:58.9]} 3... Nf6 {[%clk 0:02:56.6]}
4. e5 {[%clk 0:02:58]} 4... Nfd7 {[%clk 0:02:54.6]} 5. Bd3 {[%clk 0:02:58.9]}
5... c5 {[%clk 0:02:54.8]} 6. c3 {[%clk 0:02:59.2]} 6... Nc6 {[%clk 0:02:54.8]}
7. Ngf3 {[%clk 0:02:59.7]} 7... Qb6 {[%clk 0:02:36.7]} 8. O-O {[%clk 0:02:59.6]}
8... cxd4 {[%clk 0:02:35.9]} 9. cxd4 {[%clk 0:03:00.5]} 9... Nxd4 {[%clk
0:02:35.1]} 10. Nxd4 {[%clk 0:03:01.4]} 10... Qxd4 {[%clk 0:02:35.3]} 11. Nf3
{[%clk 0:03:02.2]} 11... Qb6 {[%clk 0:02:29.6]} 12. Qa4 {[%clk 0:03:02.6]} 12...
Be7 {[%clk 0:02:21.2]} 13. Be3 {[%clk 0:02:51.9]} 13... Qxb2 {[%clk 0:02:12.1]}
14. Rac1 {[%clk 0:02:41.3]} 14... Qa3 {[%clk 0:02:11.3]} 15. Bb5 {[%clk
0:02:37.4]} 15... Qxa4 {[%clk 0:02:09.3]} 16. Bxa4 {[%clk 0:02:38.3]} 16... a6
{[%clk 0:02:03.2]} 17. Bb6 {[%clk 0:02:34.9]} 17... Bd8 {[%clk 0:01:59]} 18. Bd4
{[%clk 0:02:20.2]} 18... b5 {[%clk 0:01:57.6]} 19. Bc2 {[%clk 0:02:20.1]} 19...
O-O {[%clk 0:01:50.7]} 20. Bd3 {[%clk 0:02:20.1]} 20... Bb7 {[%clk 0:01:45.2]}
21. Rc2 {[%clk 0:02:18]} 21... Ba5 {[%clk 0:01:42.9]} 22. Rfc1 {[%clk
0:02:13.1]} 22... Rfc8 {[%clk 0:01:42.7]} 23. h4 {[%clk 0:02:11.1]} 23... Rxc2
{[%clk 0:01:41.6]} 24. Rxc2 {[%clk 0:02:12]} 24... Rc8 {[%clk 0:01:41.6]} 25.
Rb2 {[%clk 0:02:06.8]} 25... Rc1+ {[%clk 0:01:36]} 26. Kh2 {[%clk 0:02:06.9]}
26... Bc3 {[%clk 0:01:34.4]} 27. Bxc3 {[%clk 0:02:02.5]} 27... Rxc3 {[%clk
0:01:35.3]} 28. Be2 {[%clk 0:01:58.8]} 28... h6 {[%clk 0:01:31.9]} 29. a4 {[%clk
0:01:58.1]} 29... Bc6 {[%clk 0:01:18.6]} 30. axb5 {[%clk 0:01:57.2]} 30... axb5
{[%clk 0:01:17.9]} 31. Bxb5 {[%clk 0:01:57.7]} 31... Bxb5 {[%clk 0:01:18.5]} 32.
Rxb5 {[%clk 0:01:58.1]} 32... Rc2 {[%clk 0:01:13.5]} 33. Kg3 {[%clk 0:01:57.3]}
33... Nc5 {[%clk 0:01:12.2]} 34. h5 {[%clk 0:01:40.9]} 34... Ne4+ {[%clk
0:01:10.7]} 35. Kf4 {[%clk 0:01:41.1]} 35... Rxf2 {[%clk 0:01:08.7]} 36. Rb8+
{[%clk 0:01:36.9]} 36... Kh7 {[%clk 0:01:08.4]} 37. Rb7 {[%clk 0:01:35.3]} 37...
Rxg2 {[%clk 0:01:02]} 38. Rxf7 {[%clk 0:01:34.3]} 38... Rf2 {[%clk 0:01:02.2]}
39. Ke3 {[%clk 0:01:31.4]} 39... Rf1 {[%clk 0:00:59.5]} 40. Ng5+ {[%clk
0:01:30.3]} 40... Nxg5 {[%clk 0:00:57.2]} 41. Rxf1 {[%clk 0:01:31.2]} 41... g6
{[%clk 0:00:55.8]} 42. Kf4 {[%clk 0:01:12.3]} 42... gxh5 {[%clk 0:00:52.9]} 43.
Kg3 {[%clk 0:01:12.3]} 43... Kg7 {[%clk 0:00:49.7]} 44. Kh4 {[%clk 0:01:10.6]}
44... Nf7 {[%clk 0:00:49.6]} 45. Rf6 {[%clk 0:01:05.2]} 45... Nxe5 {[%clk
0:00:49.2]} 46. Rxe6 {[%clk 0:01:05.7]} 46... Nf7 {[%clk 0:00:44.5]} 47. Kxh5
{[%clk 0:01:01.4]} 47... d4 {[%clk 0:00:44.2]} 48. Re4 {[%clk 0:00:59.6]} 48...
d3 {[%clk 0:00:43.6]} 49. Rd4 {[%clk 0:00:59.6]} 49... Ne5 {[%clk 0:00:43.3]}
50. Rd5 {[%clk 0:00:59.1]} 50... Kf6 {[%clk 0:00:41.9]} 51. Kxh6 {[%clk
0:00:31.3]} 51... Kf5 {[%clk 0:00:41.9]} 52. Kh5 {[%clk 0:00:29.4]} 52... Ke4
{[%clk 0:00:42.1]} 53. Rd8 {[%clk 0:00:28.3]} 53... d2 {[%clk 0:00:37.2]} 54.
Rxd2 {[%clk 0:00:26.6]} 54... Ke3 {[%clk 0:00:36.2]} 55. Rd8 {[%clk 0:00:25.7]}
55... Nf3 {[%clk 0:00:36.1]} 56. Kg4 {[%clk 0:00:25.2]} 56... Nd4 {[%clk
0:00:36]} 57. Re8+ {[%clk 0:00:24.2]} 57... Kd3 {[%clk 0:00:35]} 58. Kf4 {[%clk
0:00:25.1]} 58... Kc3 {[%clk 0:00:34]} 59. Rc8+ {[%clk 0:00:23.2]} 59... Kd3
{[%clk 0:00:33.8]} 60. Rd8 {[%clk 0:00:23.7]} 60... Kc3 {[%clk 0:00:33.7]} 61.
Ke4 {[%clk 0:00:23.8]} 61... Nb3 {[%clk 0:00:33.4]} 62. Rd3+ {[%clk 0:00:22.6]}
62... Kc4 {[%clk 0:00:33.2]} 63. Rd8 {[%clk 0:00:20.2]} 63... Nc5+ {[%clk
0:00:33.2]} 64. Ke3 {[%clk 0:00:20.6]} 64... Nb3 {[%clk 0:00:33.1]} 65. Rc8+
{[%clk 0:00:20.8]} 65... Kb4 {[%clk 0:00:32.8]} 66. Kd3 {[%clk 0:00:19.9]} 66...
Nc5+ {[%clk 0:00:32.6]} 67. Kd4 {[%clk 0:00:20.4]} 67... Nb3+ {[%clk 0:00:32.5]}
68. Kd5 {[%clk 0:00:20.6]} 68... Nd2 {[%clk 0:00:31.7]} 69. Rc7 {[%clk
0:00:19.4]} 69... Kb3 {[%clk 0:00:30.5]} 70. Rb7+ {[%clk 0:00:19.4]} 70... Kc3
{[%clk 0:00:30.4]} 71. Rh7 {[%clk 0:00:20]} 71... Nb3 {[%clk 0:00:29.5]} 72.
Rh3+ {[%clk 0:00:20.3]} 72... Kc2 {[%clk 0:00:29.5]} 73. Rg3 {[%clk 0:00:20.4]}
73... Nd2 {[%clk 0:00:29.2]} 74. Kd4 {[%clk 0:00:20.6]} 74... Nb3+ {[%clk
0:00:29]} 75. Kc4 {[%clk 0:00:21.3]} 75... Nd2+ {[%clk 0:00:29]} 76. Kb4 {[%clk
0:00:22.2]} 76... Kd1 {[%clk 0:00:27.9]} 77. Rg2 {[%clk 0:00:22.4]} 77... Nf3
{[%clk 0:00:26.8]} 78. Kc3 {[%clk 0:00:22.4]} 78... Ke1 {[%clk 0:00:26.5]} 79.
Kd3 {[%clk 0:00:22.2]} 79... Kf1 {[%clk 0:00:26.8]} 80. Ra2 {[%clk 0:00:21.9]}
80... Ne1+ {[%clk 0:00:25.7]} 81. Ke3 {[%clk 0:00:22.2]} 81... Ng2+ {[%clk
0:00:25.4]} 82. Kf3 {[%clk 0:00:22.4]} 82... Ne1+ {[%clk 0:00:25.6]} 83. Kg3
{[%clk 0:00:22.9]} 83... Nc2 {[%clk 0:00:24.7]} 84. Rxc2 {[%clk 0:00:22.6]} 1-0

[Event "*** SCC Grand Prix: Titled Tuesday Blitz"]
[Site "Chess.com"]
[Date "2020.09.08"]
[Round "1"]
[White "GMKrikor"]
[Black "aloe_normansen"]
[Result "1-0"]
[WhiteElo "2689"]
[BlackElo "2355"]
[TimeControl "180+1"]
[EndTime "10:08:45 PDT"]
[Termination "GMKrikor won by resignation"]

1. e4 {[%clk 0:02:44.2]} 1... c5 {[%clk 0:02:59.5]} 2. Nf3 {[%clk 0:02:29.1]}
2... d6 {[%clk 0:02:59.3]} 3. d4 {[%clk 0:02:24.6]} 3... cxd4 {[%clk 0:03:00.2]}
4. Nxd4 {[%clk 0:02:22.5]} 4... Nf6 {[%clk 0:02:59.8]} 5. Nc3 {[%clk 0:02:21.3]}
5... a6 {[%clk 0:02:58.7]} 6. Be3 {[%clk 0:02:17.4]} 6... e6 {[%clk 0:02:57.7]}
7. g4 {[%clk 0:02:15.7]} 7... h6 {[%clk 0:02:49.5]} 8. f3 {[%clk 0:02:04.4]}
8... b5 {[%clk 0:02:42.3]} 9. a3 {[%clk 0:02:03.6]} 9... Nbd7 {[%clk 0:02:38.2]}
10. Qd2 {[%clk 0:01:18.2]} 10... Qc7 {[%clk 0:02:24]} 11. h4 {[%clk 0:01:15.2]}
11... Nb6 {[%clk 0:01:43.5]} 12. Qf2 {[%clk 0:01:07.3]} 12... Nfd7 {[%clk
0:01:30.3]} 13. O-O-O {[%clk 0:01:04.3]} 13... Rb8 {[%clk 0:01:28.8]} 14. Kb1
{[%clk 0:01:03.4]} 14... Ne5 {[%clk 0:01:15.8]} 15. Nb3 {[%clk 0:00:39.2]} 15...
Nbc4 {[%clk 0:01:10.5]} 16. Bxc4 {[%clk 0:00:36.8]} 16... Nxc4 {[%clk
0:01:08.2]} 17. Bc1 {[%clk 0:00:29]} 17... Nxa3+ {[%clk 0:00:56.3]} 18. bxa3
{[%clk 0:00:29.9]} 18... Qxc3 {[%clk 0:00:56.4]} 19. Bb2 {[%clk 0:00:30.5]}
19... Qc7 {[%clk 0:00:53.5]} 20. g5 {[%clk 0:00:31]} 20... h5 {[%clk 0:00:52.7]}
21. g6 {[%clk 0:00:31.5]} 21... f6 {[%clk 0:00:48.7]} 22. f4 {[%clk 0:00:31]}
22... b4 {[%clk 0:00:40.3]} 23. a4 {[%clk 0:00:30.9]} 23... Bd7 {[%clk
0:00:38.2]} 24. a5 {[%clk 0:00:31.1]} 24... Ba4 {[%clk 0:00:29.1]} 25. f5 {[%clk
0:00:29.5]} 25... e5 {[%clk 0:00:27.6]} 26. Rh3 {[%clk 0:00:24.4]} 26... Bc6
{[%clk 0:00:25.8]} 27. Qe2 {[%clk 0:00:23.6]} 27... Qb7 {[%clk 0:00:25]} 28. Re3
{[%clk 0:00:16.5]} 28... Rc8 {[%clk 0:00:23.3]} 29. Qd3 {[%clk 0:00:13.3]} 29...
Be7 {[%clk 0:00:20]} 30. Rde1 {[%clk 0:00:09.3]} 30... Bb5 {[%clk 0:00:19.6]}
31. Qd1 {[%clk 0:00:09]} 31... Qc6 {[%clk 0:00:18.9]} 32. Rd3 {[%clk 0:00:09]}
32... Bxd3 {[%clk 0:00:18.5]} 33. cxd3 {[%clk 0:00:09.5]} 33... Kd7 {[%clk
0:00:18.7]} 34. Nd2 {[%clk 0:00:09.5]} 34... Qb5 {[%clk 0:00:18.6]} 35. Qb3
{[%clk 0:00:09.3]} 35... Rc5 {[%clk 0:00:16.4]} 36. Nc4 {[%clk 0:00:09.8]} 36...
Rhc8 {[%clk 0:00:15]} 37. Rc1 {[%clk 0:00:09.9]} 37... Rxc4 {[%clk 0:00:14.9]}
38. dxc4 {[%clk 0:00:09.7]} 38... Qc5 {[%clk 0:00:15.1]} 39. Qd3 {[%clk
0:00:09.3]} 39... Ke8 {[%clk 0:00:14.3]} 40. Rd1 {[%clk 0:00:09.2]} 40... Rc6
{[%clk 0:00:13.5]} 41. Rc1 {[%clk 0:00:09.1]} 41... Bd8 {[%clk 0:00:13.4]} 42.
Qe2 {[%clk 0:00:09.2]} 42... Bxa5 {[%clk 0:00:13.2]} 43. Qxh5 {[%clk 0:00:09.4]}
43... Kd7 {[%clk 0:00:11.9]} 44. Qh8 {[%clk 0:00:09.9]} 44... Kc7 {[%clk
0:00:12.1]} 45. Qxg7+ {[%clk 0:00:10.1]} 45... Kb6 {[%clk 0:00:12.5]} 46. Qxf6
{[%clk 0:00:10.6]} 46... Qe3 {[%clk 0:00:12.7]} 47. Qd8+ {[%clk 0:00:10.2]}
47... Rc7 {[%clk 0:00:08.8]} 48. Qxd6+ {[%clk 0:00:10.4]} 48... Rc6 {[%clk
0:00:08.8]} 49. Qb8+ {[%clk 0:00:10.6]} 49... Kc5 {[%clk 0:00:08.1]} 50. Qa7+
{[%clk 0:00:08.2]} 50... Bb6 {[%clk 0:00:07.4]} 51. Qe7+ {[%clk 0:00:04.5]}
51... Rd6 {[%clk 0:00:07.7]} 52. Qxe5+ {[%clk 0:00:03.5]} 52... Kc6 {[%clk
0:00:08.2]} 53. Qe8+ {[%clk 0:00:04.1]} 53... Kc7 {[%clk 0:00:08.1]} 54. c5
{[%clk 0:00:04.7]} 54... Bxc5 {[%clk 0:00:07.7]} 55. Qe7+ {[%clk 0:00:03.3]}
55... Kc6 {[%clk 0:00:07.4]} 56. Qe8+ {[%clk 0:00:03.6]} 56... Kc7 {[%clk
0:00:07.5]} 57. Qe5 {[%clk 0:00:03.8]} 57... Qd3+ {[%clk 0:00:07]} 58. Ka1
{[%clk 0:00:03.4]} 58... Qb5 {[%clk 0:00:07.4]} 59. Qxc5+ {[%clk 0:00:02.9]}
59... Qxc5 {[%clk 0:00:07.2]} 60. Rxc5+ {[%clk 0:00:03.8]} 60... Kb6 {[%clk
0:00:08]} 61. Rd5 {[%clk 0:00:04.7]} 61... Rc6 {[%clk 0:00:07.7]} 62. Bd4+
{[%clk 0:00:04.8]} 62... Kb7 {[%clk 0:00:08.2]} 63. Kb2 {[%clk 0:00:05.7]} 63...
Kc7 {[%clk 0:00:08.5]} 64. Rc5 {[%clk 0:00:06.2]} 64... Kc8 {[%clk 0:00:08.8]}
65. Rxc6+ {[%clk 0:00:06.3]} 65... Kd7 {[%clk 0:00:09.7]} 66. Rf6 {[%clk
0:00:07.1]} 1-0

[Event "*** SCC Grand Prix: Titled Tuesday Blitz"]
[Site "Chess.com"]
[Date "2020.09.08"]
[Round "1"]
[White "CakeinSpace2002"]
[Black "Ginger_GM"]
[Result "0-1"]
[WhiteElo "2258"]
[BlackElo "2587"]
[TimeControl "180+1"]
[EndTime "10:08:47 PDT"]
[Termination "Ginger_GM won by checkmate"]

1. e4 {[%clk 0:03:00.7]} 1... c5 {[%clk 0:02:55.2]} 2. Nf3 {[%clk 0:03:00.1]}
2... d6 {[%clk 0:02:54.2]} 3. d4 {[%clk 0:02:59.1]} 3... cxd4 {[%clk 0:02:53.1]}
4. Qxd4 {[%clk 0:03:00]} 4... Nf6 {[%clk 0:02:51.5]} 5. h3 {[%clk 0:02:58.9]}
5... Nc6 {[%clk 0:02:51]} 6. Qe3 {[%clk 0:02:57.6]} 6... d5 {[%clk 0:02:47.4]}
7. exd5 {[%clk 0:02:22.1]} 7... Nxd5 {[%clk 0:02:45.9]} 8. Qb3 {[%clk
0:02:22.3]} 8... e6 {[%clk 0:02:16.9]} 9. Bb5 {[%clk 0:02:20.7]} 9... Bd7 {[%clk
0:02:14.6]} 10. O-O {[%clk 0:02:20]} 10... Be7 {[%clk 0:02:12.9]} 11. Nbd2
{[%clk 0:02:17.1]} 11... O-O {[%clk 0:02:12]} 12. Ne4 {[%clk 0:02:16.6]} 12...
a6 {[%clk 0:02:09.4]} 13. Be2 {[%clk 0:02:14.5]} 13... b5 {[%clk 0:02:08.2]} 14.
c3 {[%clk 0:02:13]} 14... Qc7 {[%clk 0:02:07]} 15. Bg5 {[%clk 0:02:05.3]} 15...
Na5 {[%clk 0:01:56.6]} 16. Qc2 {[%clk 0:02:03.4]} 16... Nc4 {[%clk 0:01:53.8]}
17. Bxe7 {[%clk 0:01:59.8]} 17... Nxe7 {[%clk 0:01:53.6]} 18. Rad1 {[%clk
0:01:55.7]} 18... Bc6 {[%clk 0:01:52.2]} 19. Neg5 {[%clk 0:01:48]} 19... g6
{[%clk 0:01:49.6]} 20. Nd4 {[%clk 0:01:47.4]} 20... Bd5 {[%clk 0:01:47.9]} 21.
Bf3 {[%clk 0:01:43.3]} 21... Qe5 {[%clk 0:01:42.2]} 22. Bxd5 {[%clk 0:01:40.3]}
22... Nxd5 {[%clk 0:01:41.9]} 23. Ngf3 {[%clk 0:01:38.3]} 23... Qf6 {[%clk
0:01:38.7]} 24. a4 {[%clk 0:01:36.3]} 24... Nf4 {[%clk 0:01:31.8]} 25. axb5
{[%clk 0:01:34.2]} 25... axb5 {[%clk 0:01:32.3]} 26. Qe4 {[%clk 0:01:29.7]}
26... Nxb2 {[%clk 0:01:24.8]} 27. Rb1 {[%clk 0:01:28.7]} 27... Na4 {[%clk
0:01:13.6]} 28. Nxb5 {[%clk 0:01:25.8]} 28... Nc5 {[%clk 0:01:13.2]} 29. Qe5
{[%clk 0:01:17.2]} 29... Qxe5 {[%clk 0:01:07]} 30. Nxe5 {[%clk 0:01:18.1]} 30...
Rfd8 {[%clk 0:00:58.4]} 31. Rfd1 {[%clk 0:01:14]} 31... f6 {[%clk 0:00:52]} 32.
Nc6 {[%clk 0:01:08.9]} 32... Rxd1+ {[%clk 0:00:51]} 33. Rxd1 {[%clk 0:01:09.8]}
33... Ra2 {[%clk 0:00:46.8]} 34. c4 {[%clk 0:00:55.4]} 34... h5 {[%clk
0:00:44.2]} 35. Ncd4 {[%clk 0:00:50.8]} 35... e5 {[%clk 0:00:42.3]} 36. Nc6
{[%clk 0:00:45.8]} 36... h4 {[%clk 0:00:42.3]} 37. Ne7+ {[%clk 0:00:41.5]} 37...
Kf7 {[%clk 0:00:41.7]} 38. Nd5 {[%clk 0:00:42.4]} 38... Ne2+ {[%clk 0:00:36.7]}
39. Kf1 {[%clk 0:00:26.6]} 39... Rc2 {[%clk 0:00:28.4]} 40. Re1 {[%clk
0:00:24.3]} 40... Nf4 {[%clk 0:00:24]} 41. Nxf4 {[%clk 0:00:22.5]} 41... exf4
{[%clk 0:00:24.9]} 42. Nd6+ {[%clk 0:00:21.8]} 42... Kg7 {[%clk 0:00:24.8]} 43.
Re2 {[%clk 0:00:19.8]} 43... Rc1+ {[%clk 0:00:24.1]} 44. Re1 {[%clk 0:00:20]}
44... Rc3 {[%clk 0:00:24.5]} 45. Re2 {[%clk 0:00:20.3]} 45... Nd3 {[%clk
0:00:23.9]} 46. Kg1 {[%clk 0:00:16.4]} 46... Ne5 {[%clk 0:00:23.1]} 47. Kh2
{[%clk 0:00:14.2]} 47... Nxc4 {[%clk 0:00:21.3]} 48. Nxc4 {[%clk 0:00:15.1]}
48... Rxc4 {[%clk 0:00:21.4]} 49. f3 {[%clk 0:00:15.1]} 49... Kh6 {[%clk
0:00:21.3]} 50. Rd2 {[%clk 0:00:15.4]} 50... Rc5 {[%clk 0:00:20.4]} 51. Rd8
{[%clk 0:00:15.6]} 51... Kg5 {[%clk 0:00:20.7]} 52. Rd4 {[%clk 0:00:14.5]} 52...
Kf5 {[%clk 0:00:20.4]} 53. Re4 {[%clk 0:00:13.9]} 53... g5 {[%clk 0:00:20.8]}
54. Re8 {[%clk 0:00:13.6]} 54... Re5 {[%clk 0:00:20.9]} 55. Rf8 {[%clk
0:00:13.4]} 55... Ke6 {[%clk 0:00:20.5]} 56. Re8+ {[%clk 0:00:13.3]} 56... Kf7
{[%clk 0:00:20.4]} 57. Rd8 {[%clk 0:00:13.2]} 57... f5 {[%clk 0:00:20.6]} 58.
Rd2 {[%clk 0:00:13.6]} 58... Kg6 {[%clk 0:00:20.7]} 59. Rf2 {[%clk 0:00:13.5]}
59... Kh5 {[%clk 0:00:21.1]} 60. Rd2 {[%clk 0:00:13.2]} 60... Rb5 {[%clk
0:00:20.7]} 61. Rd8 {[%clk 0:00:12.8]} 61... Kg6 {[%clk 0:00:20.1]} 62. Rd6+
{[%clk 0:00:11.7]} 62... Kh5 {[%clk 0:00:19.4]} 63. Rf6 {[%clk 0:00:11]} 63...
g4 {[%clk 0:00:18.3]} 64. fxg4+ {[%clk 0:00:10.6]} 64... fxg4 {[%clk 0:00:18.9]}
65. hxg4+ {[%clk 0:00:11.5]} 65... Kxg4 {[%clk 0:00:19.3]} 66. Rf8 {[%clk
0:00:11.6]} 66... Rg5 {[%clk 0:00:17.5]} 67. Rf7 {[%clk 0:00:10.7]} 67... Rg6
{[%clk 0:00:17.6]} 68. Rf8 {[%clk 0:00:10.5]} 68... Kg5 {[%clk 0:00:18]} 69. Rf7
{[%clk 0:00:09.8]} 69... Rf6 {[%clk 0:00:18.4]} 70. Rg7+ {[%clk 0:00:09.7]}
70... Rg6 {[%clk 0:00:18.7]} 71. Rf7 {[%clk 0:00:09.7]} 71... Kg4 {[%clk
0:00:18.8]} 72. Rf8 {[%clk 0:00:08.9]} 72... Re6 {[%clk 0:00:17.6]} 73. Rg8+
{[%clk 0:00:08.5]} 73... Kf5 {[%clk 0:00:18]} 74. Kh3 {[%clk 0:00:08.1]} 74...
Rh6 {[%clk 0:00:14.6]} 75. Rg3 {[%clk 0:00:06.1]} 75... hxg3# {[%clk 0:00:13.7]}
0-1

[Event "*** SCC Grand Prix: Titled Tuesday Blitz"]
[Site "Chess.com"]
[Date "2020.09.08"]
[Round "1"]
[White "olksuna"]
[Black "floplover"]
[Result "1-0"]
[WhiteElo "2661"]
[BlackElo "2330"]
[TimeControl "180+1"]
[EndTime "10:08:55 PDT"]
[Termination "olksuna won on time"]

1. Nf3 {[%clk 0:02:58.9]} 1... d5 {[%clk 0:02:59.4]} 2. g3 {[%clk 0:02:58.5]}
2... e6 {[%clk 0:02:59.4]} 3. Bg2 {[%clk 0:02:57.9]} 3... Nf6 {[%clk 0:02:59.8]}
4. O-O {[%clk 0:02:58.4]} 4... Be7 {[%clk 0:03:00]} 5. c4 {[%clk 0:02:58]} 5...
O-O {[%clk 0:02:59.7]} 6. d4 {[%clk 0:02:56.7]} 6... dxc4 {[%clk 0:02:59.4]} 7.
Qc2 {[%clk 0:02:55.4]} 7... a6 {[%clk 0:02:58.2]} 8. Qxc4 {[%clk 0:02:55.4]}
8... b5 {[%clk 0:02:58.2]} 9. Qc2 {[%clk 0:02:56.3]} 9... Bb7 {[%clk 0:02:58.8]}
10. Bd2 {[%clk 0:02:56.1]} 10... Be4 {[%clk 0:02:53.2]} 11. Qc1 {[%clk
0:02:55.7]} 11... c6 {[%clk 0:02:51.3]} 12. Rd1 {[%clk 0:02:53.5]} 12... Nbd7
{[%clk 0:02:44.6]} 13. Nc3 {[%clk 0:02:51.2]} 13... Bg6 {[%clk 0:02:28.9]} 14.
Nh4 {[%clk 0:02:40.4]} 14... Bh5 {[%clk 0:02:07.5]} 15. a3 {[%clk 0:02:35.6]}
15... Rc8 {[%clk 0:01:58.2]} 16. b4 {[%clk 0:02:19.9]} 16... Nb6 {[%clk
0:01:51.4]} 17. Nf3 {[%clk 0:02:02.5]} 17... Nc4 {[%clk 0:01:45.6]} 18. Be1
{[%clk 0:02:02.8]} 18... a5 {[%clk 0:01:39.8]} 19. Rb1 {[%clk 0:02:02.4]} 19...
axb4 {[%clk 0:01:39.3]} 20. axb4 {[%clk 0:02:03.3]} 20... Bg6 {[%clk 0:01:29.5]}
21. Rb3 {[%clk 0:01:58.4]} 21... Nd5 {[%clk 0:01:22.7]} 22. Ne5 {[%clk
0:01:40.4]} 22... Nxb4 {[%clk 0:01:08.6]} 23. Rxb4 {[%clk 0:01:26.1]} 23... Bxb4
{[%clk 0:01:07.7]} 24. Nxc6 {[%clk 0:01:26.2]} 24... Rxc6 {[%clk 0:00:32.3]} 25.
Bxc6 {[%clk 0:01:27.1]} 25... Bxc3 {[%clk 0:00:22.4]} 26. Qxc3 {[%clk
0:01:15.5]} 26... Qb6 {[%clk 0:00:22]} 27. Bf3 {[%clk 0:01:02.8]} 27... Rd8
{[%clk 0:00:20.6]} 28. e3 {[%clk 0:00:53.2]} 28... h6 {[%clk 0:00:19.8]} 29. Qb4
{[%clk 0:00:52.7]} 29... Nd6 {[%clk 0:00:18]} 30. Rc1 {[%clk 0:00:48.4]} 30...
Be4 {[%clk 0:00:16.5]} 31. Be2 {[%clk 0:00:38]} 31... Bd5 {[%clk 0:00:14.8]} 32.
Qa5 {[%clk 0:00:26.2]} 32... Qxa5 {[%clk 0:00:13.6]} 33. Bxa5 {[%clk 0:00:27.1]}
33... Ra8 {[%clk 0:00:12.5]} 34. Bb4 {[%clk 0:00:23.6]} 34... Bc4 {[%clk
0:00:10]} 35. Bf3 {[%clk 0:00:21.9]} 35... Rd8 {[%clk 0:00:09.8]} 36. Rb1 {[%clk
0:00:22.1]} 36... Nf5 {[%clk 0:00:08.8]} 37. Bc5 {[%clk 0:00:20.6]} 37... g6
{[%clk 0:00:08.9]} 38. Kg2 {[%clk 0:00:20.9]} 38... h5 {[%clk 0:00:08.8]} 39. h4
{[%clk 0:00:21]} 39... Rc8 {[%clk 0:00:08.8]} 40. Ra1 {[%clk 0:00:20.4]} 40...
Kg7 {[%clk 0:00:08.8]} 41. Ra7 {[%clk 0:00:19.9]} 41... Nh6 {[%clk 0:00:08.6]}
42. Bd6 {[%clk 0:00:16.7]} 42... Nf5 {[%clk 0:00:08.1]} 43. Be5+ {[%clk
0:00:16.7]} 43... Kg8 {[%clk 0:00:08.7]} 44. e4 {[%clk 0:00:16.2]} 44... Ng7
{[%clk 0:00:08.2]} 45. d5 {[%clk 0:00:16.7]} 45... exd5 {[%clk 0:00:07.5]} 46.
exd5 {[%clk 0:00:17.6]} 46... b4 {[%clk 0:00:08.2]} 47. Rb7 {[%clk 0:00:17.6]}
47... b3 {[%clk 0:00:08.1]} 48. d6 {[%clk 0:00:17.1]} 48... Ne6 {[%clk
0:00:07.7]} 49. d7 {[%clk 0:00:15.6]} 49... Rd8 {[%clk 0:00:07.8]} 50. Bc6
{[%clk 0:00:16.2]} 50... Nc5 {[%clk 0:00:06.5]} 51. Rb4 {[%clk 0:00:13.7]} 51...
Be6 {[%clk 0:00:06]} 52. Bf6 {[%clk 0:00:14.1]} 52... Ra8 {[%clk 0:00:04.6]} 53.
d8=Q+ {[%clk 0:00:12.8]} 53... Rxd8 {[%clk 0:00:04.2]} 54. Bxd8 {[%clk
0:00:13.7]} 54... Nd3 {[%clk 0:00:04.1]} 55. Rb8 {[%clk 0:00:13.3]} 55... Kg7
{[%clk 0:00:03.6]} 56. Be4 {[%clk 0:00:11.3]} 56... Nc5 {[%clk 0:00:02.9]} 57.
Bb1 {[%clk 0:00:09.8]} 57... Nd7 {[%clk 0:00:03.8]} 58. Rb4 {[%clk 0:00:08.9]}
58... Ne5 {[%clk 0:00:04.3]} 59. Bb6 {[%clk 0:00:07.7]} 59... Nc6 {[%clk
0:00:04.8]} 60. Rb5 {[%clk 0:00:05.9]} 60... Ne7 {[%clk 0:00:05.7]} 61. Bd4+
{[%clk 0:00:05.7]} 61... Kh7 {[%clk 0:00:04.2]} 62. Rb8 {[%clk 0:00:06.6]} 62...
Ng8 {[%clk 0:00:03.1]} 63. Bb2 {[%clk 0:00:05.6]} 63... Bd5+ {[%clk 0:00:03.2]}
64. f3 {[%clk 0:00:05.5]} 64... f5 {[%clk 0:00:03.4]} 65. Kf2 {[%clk 0:00:06.4]}
65... Nf6 {[%clk 0:00:02.5]} 66. Rc8 {[%clk 0:00:04.9]} 66... Ng8 {[%clk
0:00:02]} 67. Rc7+ {[%clk 0:00:05.2]} 67... Kh6 {[%clk 0:00:01.8]} 68. Bg7+
{[%clk 0:00:05.2]} 68... Kh7 {[%clk 0:00:02]} 69. Bf8+ {[%clk 0:00:05.7]} 69...
Kh8 {[%clk 0:00:02.1]} 70. Bb4 {[%clk 0:00:06.5]} 70... Nf6 {[%clk 0:00:01.5]}
71. Bc3 {[%clk 0:00:07.4]} 71... Kg8 {[%clk 0:00:01.1]} 72. Bxf6 {[%clk
0:00:07.5]} 1-0